Cogmind - Beta 14 @@@ ROGUE MODE // 2024.08.19 @ 23:39:18 Player: DPengu Result: Destroyed by Y-45 Defender with Beam Rifle Performance ------------- Evolutions (1) 500 Regions Visited (3) 600 Robots Destroyed (89) 445 Value Destroyed (2413) 2413 Prototype IDs (3) 60 Alien Tech Used (0) 0 Bonus (219) 219 TOTAL SCORE: 4237 Bonus ------- High Alert Combat Kills 219 Cogmind --------- Core Integrity 0/400 Matter 136/300 Energy 255/265 System Corruption 3% Temperature Warning (359) Movement Treading (320) Ox2 Location -9/Storage Parts ------- > --- POWER (1) -------- Improved Ion Engine > --- PROPULSION (3) --- Improved Treads > --- UTILITY (3) ------ High-capacity Storage Unit Signal Interpreter Hacking Suite > --- WEAPON (2) ------- Autogun Assault Cannon > --- INVENTORY (20) --- Light Treads Huge Storage Unit Weight Redist. System Salvage Targeting Computer Improved Targeting Computer Reactive Plating Reactive Plating Reactive Plating Reactive Plating Shield Generator Tractor Beam Field Recycling Unit (0) Particle Gun Autogun Advanced EMP Blaster Advanced EMP Blaster Missile Launcher Missile Launcher Maul Peak State ------------ > --- POWER ------------ Improved Ion Engine > --- PROPULSION ------- Light Treads Improved Treads Improved Treads > --- UTILITY ---------- High-capacity Storage Unit Signal Interpreter Hacking Suite > --- WEAPON ----------- Improved Medium Laser Assault Cannon > --- INVENTORY -------- Light Treads Aluminum Leg Huge Storage Unit Weight Redist. System Salvage Targeting Computer Improved Targeting Computer Reactive Plating Reactive Plating Reactive Plating Reactive Plating Tractor Beam Field Recycling Unit Particle Gun Autogun Autogun Advanced EMP Blaster Advanced EMP Blaster Missile Launcher Missile Launcher Maul [Rating: 22] Favorites ----------- Power Ion Engine Engine Ion Engine Propulsion Light Treads Treads Light Treads Leg Aluminum Leg Flight Unit VTOL Module Utility Signal Interpreter Device Weight Redist. System Storage High-capacity Storage Unit Processor Signal Interpreter Hackware Hacking Suite Protection Reactive Plating Weapon Improved Medium Laser Energy Gun Improved Medium Laser Ballistic Gun Assault Rifle Ballistic Cannon Assault Cannon Launcher Advanced EMP Blaster Impact Weapon Maul Build | -11 -10 -9 -9 ------- Run | Yrd Mat Mat Sto Slots Evolved 2 | . . 2 . Power . | . . . . Propulsion 1 | . . 1 . Utility 1 | . . 1 . Weapon . | . . . . Parts Attached 81 | 6 22 24 29 Power 6 | 1 2 1 2 Engine 6 | 1 2 1 2 Core . | . . . . Reactor . | . . . . Propulsion 24 | 2 6 7 9 Treads 14 | . 1 5 8 Leg 9 | 2 5 1 1 Wheel . | . . . . Hover . | . . . . Flight 1 | . . 1 . Utility 17 | 1 7 8 1 Device 4 | . 2 2 . Storage 9 | 1 4 4 . Processor 2 | . 1 1 . Hackware 1 | . . . 1 Protection 1 | . . 1 . Artifact . | . . . . Weapon 34 | 2 7 8 17 Energy Gun 9 | 1 4 3 1 Energy Cannon . | . . . . Ballistic Gun 4 | 1 1 1 1 Ballistic Cannon 9 | . . 2 7 Launcher 6 | . 2 2 2 Special Weapon . | . . . . Impact Weapon 6 | . . . 6 Slashing Weapon . | . . . . Piercing Weapon . | . . . . Special Melee Weapon . | . . . . Unidentified Prototypes 2 | . 1 1 . Parts Lost 15 | . 3 2 10 Power 1 | . . . 1 Propulsion 10 | . 2 2 6 Utility 1 | . 1 . . Weapon 3 | . . . 3 Highest Loss Streak 3 | . 1 1 3 To Critical Strikes . | . . . . Average Slot Usage (%) 94 | . 93 93 96 Engine 11 | . 14 11 9 Treads 18 | . . 15 29 Leg 8 | . 25 7 1 Flight 1 | . . 4 . Device 1 | . 6 1 . Storage 13 | . 16 13 11 Processor 12 | . . 16 14 Hackware 3 | . . . 7 Energy Gun 11 | . 19 9 9 Ballistic Gun 2 | . 7 1 . Ballistic Cannon 7 | . . 9 8 Impact Weapon 1 | . . . 3 Peak Build Rating 22 | 6 12 21 22 Average Rating 15 | 4 8 16 19 On Entrance 9 | . 6 12 20 Naked Turns . | . . . . Heaviest Build 95 | 13 89 95 56 Greatest Support 66 | 20 20 63 66 Greatest Overweight (x) 4 | 1 4 2 1 Average Overweight (x) . | . . . . Largest Inventory Capacity 25 | 8 25 25 20 Average Capacity 15 | 7 8 13 20 Most Carried 20 | 5 8 20 20 Average Carried 13 | 3 7 11 18 Final Capacity 20 | 8 8 20 20 Final Carried 20 | 5 8 20 19 Class Distribution -------------------- 70% | Scavenger-Mutant 29% | Mutant Dominant Class ---------------- Mutant | -10/Materials Scavenger-Mutant | -9/Materials Scavenger-Mutant | -9/Storage Resources | -11 -10 -9 -9 ----------- Run | Yrd Mat Mat Sto Matter Collected 2028 | 263 584 568 613 Remotely 56 | . 56 . . Salvage Created 2618 | 30 669 924 995 Parts 178 | 2 37 65 74 Haulers Intercepted . | . . . . Recyclers Shooed 4 | . 1 2 1 Parts Field Recycled . | . . . . Retrieved Matter . | . . . . Parts Self-Destructed . | . . . . Prevented . | . . . . Kills | -11 -10 -9 -9 ------- Run | Yrd Mat Mat Sto Combat Hostiles Destroyed 71 | . 16 24 31 Guns 37 | . 12 13 12 Cannons 27 | . . 8 19 AOE 6 | . 3 3 . Classes Destroyed 10 | 1 5 3 1 Worker 2 | . . 1 1 Builder 3 | . 2 1 . Tunneler 1 | 1 . . . Recycler 4 | . 2 2 . Operator 2 | . . 2 . Watcher 6 | . 1 3 2 Swarmer 18 | . 6 6 6 Grunt 36 | . 10 13 13 Duelist 1 | . . . 1 Sentry 16 | . . 5 11 Best Kill Streak 9 | 1 4 6 9 Combat Bots Only 9 | . 3 6 9 Max Kills in Single Turn 2 | 1 2 2 2 Gunslinging 1 | . 1 . . Exploded 2 | . 2 1 . Melee . | . . . . Uniques/NPCs Destroyed . | . . . . Combat | -11 -10 -9 -9 -------- Run | Yrd Mat Mat Sto Hostile Shots Fired 371 | . 99 97 175 Missed 101 | . 34 26 41 Damage Taken 3410 | . 657 876 1877 Core 527 | . 122 120 285 Absorbed by Shields . | . . . . Regen/Repaired (Parts) 107 | . 31 . 76 Core Remaining (%) 75 | 100 51 . . Volleys Fired 228 | 1 56 79 92 Largest 2 | 2 2 2 2 Hottest 112 | 60 112 112 100 Shots Fired 412 | 2 96 146 168 Gun 258 | 2 91 89 76 Cannon 143 | . . 53 90 Launcher 11 | . 5 4 2 Special . | . . . . Kinetic 187 | 1 22 73 91 Thermal 214 | 1 69 69 75 Explosive 11 | . 5 4 2 Electromagnetic . | . . . . Robot Hit Streak 21 | 1 8 12 21 Robot Miss Streak 5 | 1 5 4 3 Penetration Max . | . . . . Secondary Targets 2 | . 2 . . Max Gunslinging Chain 1 | . 1 . . Shots Hit Robots 243 | 1 56 73 113 Core Hits 112 | 1 28 41 42 Critical Kills . | . . . . Critical Parts Destroyed . | . . . . Critical Strikes 22 | . 4 4 14 Burn 15 | . 4 1 10 Blast 7 | . . 3 4 Melee Attacks 45 | . . . 45 Impact 45 | . . . 45 Slashing . | . . . . Piercing . | . . . . Sneak Attacks . | . . . . Combat Hostiles . | . . . . Follow-up Attacks . | . . . . Damage Inflicted 5146 | 14 955 1767 2410 Guns 2491 | 10 785 787 909 Cannons 2278 | . . 777 1501 Explosions 372 | . 170 202 . Melee . | . . . . Ramming 5 | 4 . 1 . Kinetic 2642 | 10 189 930 1513 Thermal 2127 | . 596 634 897 Explosive 372 | . 170 202 . Electromagnetic . | . . . . Impact . | . . . . Slashing . | . . . . Piercing . | . . . . Highest Corruption 5 | . 5 . 3 Average Corruption 3 | . 4 . 3 Corruption Purged . | . . . . Corruption Blocked . | . . . . Effects 52 | . 25 . 27 Message Errors 16 | . 6 . 10 Matter Fused 11 | . 7 . 4 Heat Flow Errors 4 | . 3 . 1 Energy Discharges 5 | . 2 . 3 Parts Rejected 1 | . 1 . . Data Loss (minor) 7 | . 3 . 4 Data Loss (major) 1 | . 1 . . Misfires 5 | . 1 . 4 Alerts 1 | . . . 1 Weapon Failures 1 | . 1 . . Overload Shots . | . . . . Overflow Damage 16 | . . 15 1 Projectiles 16 | . . 15 1 Explosions . | . . . . Melee . | . . . . Knockbacks 12 | . . 3 9 Impact . | . . . . Kinetic 11 | . . 3 8 Secondary 1 | . . . 1 Self-Inflicted Damage 31 | . 30 . 1 Shots 3 | . 2 . 1 Rammed 1 | . . 1 . Targets Rammed 3 | 1 1 1 . Kicked 2 | 1 1 . . Crushed . | . . . . Highest Temperature 396 | . 247 153 396 Average Temperature 76 | . 58 51 107 Received Heat Transfer 1008 | . 189 333 486 Effects 3 | . 1 . 2 Shutdowns 1 | . . . 1 Energy Bleed 1 | . . . 1 Interference 1 | . 1 . . Siege Activations . | . . . . Robots Corrupted . | . . . . Combat Hostiles . | . . . . Parts Fried . | . . . . Impact Corruptions . | . . . . Robots Melted 1 | . 1 . . Combat Hostiles 1 | . 1 . . Parts Melted 6 | . 1 . 5 Heat Transferred 5740 | . 1596 1443 2701 Parts Sabotaged . | . . . . Parts Stolen . | . . . . Parts Stripped . | . . . . Power Chain Reactions . | . . . . Alert | -11 -10 -9 -9 ------- Run | Yrd Mat Mat Sto Peak Influence 652 | 5 300 599 652 Initial 206 | . 3 92 206 Average 331 | 1 113 427 365 Maximum Alert Level 2 | . 1 2 2 Low Security (%) 21 | 100 85 8 . Level 1 33 | . 14 11 60 Level 2 44 | . . 79 39 Level 3 . | . . . . Level 4 . | . . . . Level 5 . | . . . . High Security . | . . . . Max Security . | . . . . Squads Dispatched 13 | . 4 5 4 Investigation 6 | . 3 2 1 Extermination . | . . . . Reinforcement 6 | . 1 3 2 Assault . | . . . . Garrison 1 | . . . 1 Intercept . | . . . . Searches Triggered . | . . . . Construction Impeded 2 | . . . 2 Haulers Reinforced . | . . . . Active Scanning Responses . | . . . . Cargo Convoy Interrupts . | . . . . Stealth | -11 -10 -9 -9 --------- Run | Yrd Mat Mat Sto Distress Signals 7 | . . 2 5 Communications Jammed . | . . . . Distress Signals . | . . . . Times Spotted 100 | . 20 37 43 Peak Tracking Total 7 | . 4 6 7 Tactical Retreats 4 | . . 2 2 Traps | -11 -10 -9 -9 ------- Run | Yrd Mat Mat Sto Traps Triggered 5 | . 5 . . Indirectly . | . . . . Trap Hack Attempts . | . . . . Triggered . | . . . . Disarmed 5 | . 5 . . Reprogrammed . | . . . . Reused . | . . . . Traps Extracted . | . . . . Installed . | . . . . Triggered . | . . . . Machines | -11 -10 -9 -9 ---------- Run | Yrd Mat Mat Sto Machines Disabled 4 | . 2 1 1 Max in Single Turn 2 | . 2 1 1 Machines Repaired . | . . . . Machines Dismantled . | . . . . Machines Sabotaged . | . . . . Overloaded Fab Kills . | . . . . Hacking | -11 -10 -9 -9 --------- Run | Yrd Mat Mat Sto Machines Accessed 20 | . 4 6 10 Terminals 12 | . 3 2 7 Fabricators . | . . . . Repair Stations 4 | . 1 1 2 Recycling Units 2 | . . 1 1 Scanalyzers 2 | . . 2 . Garrison Access . | . . . . Total Hacks 72 | . 13 23 36 Successful 38 | . 8 14 16 Failed 34 | . 5 9 20 Catastrophic 6 | . 1 3 2 Database Lockouts . | . . . . Manual . | . . . . Terminals 42 | . 11 2 29 Fabricators . | . . . . Repair Stations 11 | . 2 3 6 Recycling Units 5 | . . 4 1 Scanalyzers 14 | . . 14 . Garrison Access . | . . . . Terminal Hacks 16 | . 6 . 10 Record 6 | . . . 6 Part Schematic 1 | . . . 1 Prototype ID Bank 1 | . 1 . . Branch Access Points 1 | . . . 1 Alert Level 2 | . 1 . 1 Disarm Traps 1 | . 1 . . Reinforcement Status 1 | . 1 . . Recall Investigation 1 | . 1 . . Registered Components 1 | . . . 1 Zone Layout 1 | . 1 . . Fabricator Hacks . | . . . . Repair Station Hacks 7 | . 2 . 5 Scan Component 3 | . 1 . 2 Repair 3 | . 1 . 2 Refit 1 | . . . 1 Recycling Unit Hacks 2 | . . 1 1 Report Inventory 2 | . . 1 1 Scanalyzer 13 | . . 13 . Insert Component 7 | . . 7 . Analyze 6 | . . 6 . Garrison Access Hacks . | . . . . Unauthorized Hacks . | . . . . Terminals . | . . . . Fabricators . | . . . . Repair Stations . | . . . . Recycling Units . | . . . . Scanalyzers . | . . . . Garrison Access . | . . . . Data Cores Recovered 1 | . . 1 . Used 1 | . . 1 . Hacking Detections 17 | . 4 6 7 Full Trace Events 5 | . 1 2 2 Feedback Events . | . . . . Feedback Blocked . | . . . . Robot Schematics Acquired . | . . . . Robots Built . | . . . . Authchips . | . . . . Time . | . . . . Total Robot Build Rating . | . . . . Part Schematics Acquired 7 | . . 6 1 Parts Built . | . . . . Authchips . | . . . . Time . | . . . . Total Part Build Rating . | . . . . Parts Repaired 3 | . 1 . 2 Time 140 | . 26 . 114 Parts Recycled . | . . . . Recycled Matter . | . . . . Retrieved Matter . | . . . . Retrieved Components . | . . . . Parts Scanalyzed 6 | . . 6 . Part Schematics Acquired 6 | . . 6 . Parts Damaged 1 | . . 1 . Bothacking | -11 -10 -9 -9 ------------ Run | Yrd Mat Mat Sto Used RIF Installer . | . . . . Robots Hacked . | . . . . Non-combat . | . . . . Combat . | . . . . Robot Hacks Applied . | . . . . Relay Couplers Released . | . . . . Fabnet Peak Effective % . | . . . . Robots Rewired . | . . . . Allies Hacked . | . . . . Hacks Repelled . | . . . . Allies | -11 -10 -9 -9 -------- Run | Yrd Mat Mat Sto Total Allies . | . . . . Largest Group . | . . . . Highest-Rated Group . | . . . . Highest-Rated Ally . | . . . . Total Orders . | . . . . Ally Attacks . | . . . . Total Damage . | . . . . Kills . | . . . . Allies Corrupted . | . . . . Allies Melted . | . . . . Intel | -11 -10 -9 -9 ------- Run | Yrd Mat Mat Sto Robot Analysis Total . | . . . . Derelict Logs Recovered . | . . . . Drone Launches . | . . . . Drone Recoveries . | . . . . Exploration | -11 -10 -9 -9 ------------- Run | Yrd Mat Mat Sto Turns Passed 5502 | 71 1118 1925 2388 Spaces Moved 2339 | 48 607 863 821 Core 9 | 9 . . . Treads 1369 | . 22 526 821 Legs 961 | 39 585 337 . Wheels . | . . . . Hover . | . . . . Flight . | . . . . Fastest Speed 50 | 50 120 120 160 Average Speed 160 | 111 129 167 179 Slowest Speed 400 | 190 400 320 240 Overloaded Moves . | . . . . Propulsion Burnouts . | . . . . Robots Hopped . | . . . . Cave-ins Triggered 1 | . . . 1 Exploration Rate (%) 50 | 4 71 50 75 Regions Visited 3 Branch Regions 1 Pre-discovered Areas . | . . . . Known Exits Taken 1 | . . 1 . Unknown Exits Taken 2 | 1 1 . . Scrap Searched . | . . . . Spaces Dug 17 | . . . 17 Terrain Destroyed 100 | . 32 28 40 Melee 11 | . . . 11 Projectile 22 | . . 13 9 AOE 67 | . 32 15 20 Terrain Rammed . | . . . . Walls Destroyed . | . . . . Machines Disabled . | . . . . Actions | -11 -10 -9 -9 --------- Run | Yrd Mat Mat Sto Total 3578 | 60 843 1200 1475 Wait 781 | . 129 176 476 Move 2336 | 47 606 862 821 Hop . | . . . . Pick Up 57 | 5 13 34 5 Fast Attach 23 | 6 5 6 6 Attach 11 | . 5 3 3 Detach 2 | . 1 1 . Swap 47 | . 12 15 20 Drop 45 | . 15 23 7 Fire 228 | 1 56 79 92 Melee 45 | . . . 45 Ram . | . . . . Kick 2 | 1 1 . . Crush 1 | . . 1 . Escape Stasis . | . . . . Rewire . | . . . . Trap . | . . . . Miscellaneous . | . . . . Route ------- -11/Scrapyard -10/Materials (discovered 2 exits: *Mat x2) -9/Materials (discovered 2 exits: *Mat / *Sto) -9/Storage (discovered 1 exit: Rec) History --------- Turn | Location | Event 39 | -11/Scrapyard | Discovered new exit (range 12) 72 | -11/Scrapyard | Entered Materials 301 | -10/Materials | Build established: Mutant 453 | -10/Materials | Discovered new exit (range 15) 632 | -10/Materials | Discovered new exit (range 20) 936 | -10/Materials | Repaired Grenade Launcher 1190 | -10/Materials | Entered another Materials area 1190 | -9/Materials | Evolved 2 slots: Propulsion x1, Utility x1 1431 | -9/Materials | Build established: Scavenger-Mutant 2106 | -9/Materials | Discovered new exit (range 13) 2142 | -9/Materials | Identified exit to Materials 2257 | -9/Materials | Discovered new exit (range 18) 2578 | -9/Materials | Identified exit to Storage 3115 | -9/Materials | Entered Storage 3260 | -9/Storage | Destroyed 9 combat bots 4239 | -9/Storage | Crushed by falling debris 4239 | -9/Storage | Core integrity fell below 50% 4239 | -9/Storage | Core integrity fell below 20% 4373 | -9/Storage | Identified exit to Recycling 4847 | -9/Storage | Repaired Assault Cannon 5014 | -9/Storage | Repaired Broken Adv. EMP Blaster 5436 | -9/Storage | Build established: Mutant 5464 | -9/Storage | Garrison activated, responded to threat 5503 | -9/Storage | Destroyed by Y-45 Defender with Beam Rifle Last Messages --------------- 05464_ R-06 Scavenger collects Flight Unit. 05468_ R-06 Scavenger collects Heat Sink. 05476_ Y-45 Defender suffers critical hit (Burn). 05482_ System corrupted: FCS attempts to trigger Imp. Medium Laser. 05482_ System corrupted: Imp. Medium Laser misfires. 05482_ Y-45 Defender suffers critical hit (Burn). 05483_ Y-45 Defender heat damages Lgt. Treads. 05485_ Y-45 Defender suffers critical hit (Burn). 05488_ Y-45 Defender destroyed. 05491_ Y-45 Defender suffers critical hit (Burn). 05491_ Imp. Medium Laser destroyed. 05491_ Critical hit (Burn: +37). 05496_ Lgt. Treads destroyed. 05500_ Imp. Treads destroyed. Map ----- +----------------------------------------------------+ | +|% #????????????????????????????# # " | | %% # #????????????????????????????# #%*" | | #### #????????????????????????????# #% " | | + #????????????????????????????# + | | +#############????????????###?????????????# # %" | | #??????????????????????? ?????????????# # " | | #???????????????????#??"" ""??#?????????# # " | | #???????????????????# """ """ #?????????# + | | #???????????????????# """ """ ###????####+# #### | | #???????????????????# """ """ # ###### # #??? | | " #???????????????????# """ """ # # + #??? | | " #???????????????????? # """ # # #??? | | " #?????????????????????? ??# """ # # #??? | | #?????????###############+##### """ # + +??? | | ###?????????# # + # # #??? | | ????????????# = # ##### ==! # # #### | | ????????????# """ """ %+ %#???# =! # + | | ?????????????? """ """ =#%%#???# =! # # | | ???????????????""" """ #* #???# ###### | | ???????????????? # #???#"" + | | ????????????????### ###### #???#"Y ########### | | ????????????##### ####???# %#???#"" #?????????? | | ????????????# == #???# s#???#% ####??????? | | ????????????# =! #???# s#####+#######T#"?????? | | ????????????# ##### % "?>???? | | ????????????# +%%Y@%u "???### | | ????????????+ ############+#########"#### # | | ????????????# " " #??????# #????## ### | | ????????????# "G" #??????# """#????# | | ????????????# """ #??????# R"#????## | | ????????????# #??????# """ """####### | | ????????????##########??????# """ + | | ????????????????????????????# """ ############ | | ????????????????????????????# #??????????? | | ????????????????????????????# #??????????? | | ????????????????????????????###########??????????? | | | | | | | | | | | | | | | | | | | | | | | | | | | | | +----------------------------------------------------+ Best States ------------- Heat Dissipation 28 Energy Generation 12 Energy Capacity 450 Matter Stores 300 Matter Capacity 350 Sight Range 18 Terrain Scan Range 14 Terrain Scan Density 10 Additional Mass Support 6 Armor Coverage 150 Resistance: KI 20 Evasion (%) 55 Recoil Reduction 3 Offensive Hacking 10 Item Schematics ----------------- Huge Storage Unit | -9/Materials | Scanalyzed Reactive Plating | -9/Materials | Scanalyzed Adv. EMP Blaster | -9/Materials | Scanalyzed Imp. Targeting Computer | -9/Materials | Scanalyzed Imp. Medium Laser | -9/Materials | Scanalyzed Field Recycling Unit | -9/Materials | Scanalyzed Adv. Targeting Computer | -9/Storage | Hacked Robot Schematics ------------------ None Fabricated ------------ Nothing Alien Tech Used ----------------- None Achievements -------------- Dynamic Key Maybe Next Time I'll Detach My Launcher Part-time Excavator Troublemaker Challenges ------------ None Game ------ Seed RestorationCloakSource Manual? 0 Play Time 01:04:35 Cumulative 3.8 hours Start 2024.08.19 @ 20:07:38 End 2024.08.19 @ 23:39:18 Sessions 3 Manual Loads 0 Difficulty Rogue Special Mode None Game No. 7 Rogue 7 Adventurer 0 Explorer 0 Win Type - Total 0 Types 0/0/0/0/0/0/0/0/0 Lore% 1 Gallery% 7 Achievement% 10 Wizard Run 0 Options --------- Layout 1 ASCII 0 Keyboard 0 Movement Mouse Keybinds 0 Fullscreen 1 Font 24/Smallcaps Map View 50x35 Zoom Use 0% Tactical HUD 1 Map Filters NONE Filters NONE Steam 1 RUN: 255ad0c5-d656-4cbf-8473-1e49af27641d